fUSD/lending_fUSD_20241004
["ID","MTS","AMOUNT","RATE_DAILY","PERIOD"]
[339839741,1728052363768,-806.27,0.00041095,120]
[339839742,1728052363778,-500.0,0.00041095,120]
[339839743,1728052363788,-643.39,0.00041095,24]
[339839744,1728052363801,-500.0,0.00041095,120]
[339839745,1728052363811,-500.0,0.00041095,120]
[339839746,1728052363820,-500.0,0.00041095,120]
[339839747,1728052363830,-271.21686506,0.00041095,120]
[339839748,1728052363840,-519.64,0.00041095,120]
[339839749,1728052363850,-236.47909629,0.00041095,120]
[339839750,1728052363860,-500.0,0.00041095,120]
[339839751,1728052363870,-503.51272733,0.00041095,120]
[339839752,1728052363879,-338.68017386,0.00041095,120]
[339839753,1728052363890,-1013.53,0.00041095,120]
[339839754,1728052363900,-497.94599794,0.00041095,120]
[339839755,1728052363909,-1310.29,0.00041095,120]
[339839756,1728052363919,-500.0,0.00041095,120]
[339839757,1728052363929,-500.0,0.00041095,120]
[339839758,1728052363939,-591.41,0.00041095,120]
[339839759,1728052364159,-500.0,0.00041095,120]
[339839760,1728052364170,-500.0,0.00041095,120]
[339839761,1728052364180,-500.0,0.00041095,120]
[339839762,1728052364189,-639.7,0.00041095,120]
[339839763,1728052364200,-500.0,0.00041095,120]
[339839764,1728052364210,-500.0,0.00041095,120]
[339839765,1728052364219,-500.0,0.00041095,120]
[339839766,1728052364229,-1561.02,0.00041095,120]
[339839767,1728052364239,-827.19,0.00041095,120]
[339839768,1728052364249,-4363.93,0.00041095,2]
[339839769,1728052364259,-500.0,0.00041095,120]
[339839770,1728052364269,-305.65163113,0.00041095,120]
[339839771,1728052364279,-500.0,0.00041095,120]
[339839772,1728052364289,-500.0,0.00041095,120]
[339839773,1728052364303,-500.0,0.00041095,120]
[339839774,1728052364315,-563.6,0.00041095,120]
[339839775,1728052364324,-743.62,0.00041095,120]
[339839776,1728052364334,-500.0,0.00041095,120]
[339839777,1728052364344,-500.0,0.00041095,120]
[339839778,1728052364354,-559.23,0.00041095,120]
[339839779,1728052364364,-500.0,0.00041095,120]
[339839780,1728052364374,-500.0,0.00041095,120]
[339839781,1728052364385,-500.0,0.00041095,120]
[339839782,1728052364395,-511.65282889,0.00041095,120]
[339839783,1728052364405,-500.0,0.00041095,120]
[339839784,1728052364415,-500.0,0.00041095,120]
[339839785,1728052364425,-645.48,0.00041095,120]
[339839786,1728052364435,-500.0,0.00041095,120]
[339839787,1728052364445,-811.53,0.00041095,120]
[339839788,1728052364454,-500.0,0.00041095,120]
[339839789,1728052364464,-500.0,0.00041095,120]
[339839790,1728052364473,-500.0,0.00041095,120]
[339839791,1728052364483,-500.0,0.00041095,120]
[339839792,1728052364493,-1108.69,0.00041095,120]
[339839793,1728052364502,-500.0,0.00041095,120]
[339839794,1728052364513,-500.0,0.00041095,120]
[339839795,1728052364523,-500.0,0.00041095,120]
[339839796,1728052364534,-649.04040903,0.00041095,120]
[339839797,1728052364547,-649.16,0.00041095,120]
[339839798,1728052364556,-500.0,0.00041095,120]
[339839799,1728052364566,-741.25,0.00041095,120]
[339839800,1728052364576,-983.7,0.00041095,14]
[339839801,1728052364586,-500.0,0.00041095,120]
[339839802,1728052364595,-879.29,0.00041095,120]
[339839803,1728052364605,-696.42,0.00041095,120]
[339839804,1728052364616,-500.0,0.00041095,120]
[339839805,1728052364627,-500.0,0.00041095,120]
[339839806,1728052364637,-500.0,0.00041095,120]
[339839807,1728052364647,-1063.83,0.00041095,120]
[339839808,1728052364658,-727.52,0.00041095,120]
[339839809,1728052364668,-500.0,0.00041095,120]
[339839810,1728052364678,-500.0,0.00041095,120]
[339839811,1728052364688,-742.02,0.00041095,120]
[339839812,1728052364698,-800.71,0.00041095,120]
[339839813,1728052364708,-500.0,0.00041095,120]
[339839814,1728052364718,-531.4,0.00041095,120]
[339839815,1728052364727,-500.0,0.00041095,120]
[339839816,1728052364737,-607.06,0.00041095,120]
[339839817,1728052364747,-542.93,0.00041095,120]
[339839818,1728052364757,-543.77167977,0.00041095,120]
[339839819,1728052364767,-572.2,0.00041095,120]
[339839820,1728052364777,-1926.06,0.00041095,120]
[339839821,1728052364787,-977.76,0.00041095,120]
[339839822,1728052364799,-500.0,0.00041095,120]
[339839823,1728052364808,-500.0,0.00041095,120]
[339839824,1728052364819,-500.0,0.00041095,120]
[339839825,1728052364828,-598.38613508,0.00041095,120]
[339839826,1728052364837,-500.0,0.00041095,120]
[339839827,1728052364847,-1025.77,0.00041095,120]
[339839828,1728052364857,-500.0,0.00041095,120]
[339839829,1728052364866,-500.0,0.00041095,120]
[339839830,1728052364876,-876.92,0.00041095,120]
[339839831,1728052364886,-634.02,0.00041095,120]
[339839832,1728052364896,-500.0,0.00041095,120]
[339839833,1728052364906,-586.53,0.00041095,120]
[339839834,1728052364917,-500.0,0.00041095,120]
[339839835,1728052364927,-500.0,0.00041095,120]
[339839836,1728052364936,-181.16676601,0.00041095,120]
[339839837,1728052364946,-500.0,0.00041095,120]
[339839838,1728052364956,-500.0,0.00041095,120]
[339839839,1728052364966,-500.0,0.00041095,120]
[339839840,1728052364975,-500.0,0.00041095,120]
[339839841,1728052364985,-500.0,0.00041095,120]
[339839842,1728052364997,-500.0,0.00041095,120]
[339839843,1728052365007,-500.0,0.00041095,120]
[339839844,1728052365017,-500.0,0.00041095,120]
[339839845,1728052365028,-500.0,0.00041095,120]
[339839846,1728052365039,-500.0,0.00041095,120]
[339839847,1728052365051,-500.0,0.00041095,120]
[339839848,1728052365061,-500.0,0.00041095,120]
[339839849,1728052365071,-500.0,0.00041095,120]
[339839850,1728052365080,-500.0,0.00041095,120]
[339839851,1728052365090,-500.0,0.00041095,120]
[339839852,1728052365099,-500.0,0.00041095,120]
[339839853,1728052365109,-500.0,0.00041095,120]
[339839854,1728052365119,-500.24812429,0.00041095,120]
[339839855,1728052365129,-500.0,0.00041095,120]
[339839856,1728052365139,-500.0,0.00041095,120]
[339839857,1728052365148,-500.0,0.00041095,120]
[339839858,1728052365157,-500.0,0.00041095,120]
[339839859,1728052365167,-500.0,0.00041095,120]
[339839860,1728052365177,-997.26,0.00041095,120]
[339839861,1728052365187,-500.0,0.00041095,120]
[339839862,1728052365197,-500.0,0.00041095,120]
[339839863,1728052365206,-649.23,0.00041095,120]
[339839864,1728052365216,-500.0,0.00041095,120]
[339839865,1728052365225,-1071.81,0.00041095,120]
[339839866,1728052365235,-500.0,0.00041095,120]
[339839867,1728052365244,-812.57,0.00041095,120]
[339839868,1728052365254,-500.0,0.00041095,120]
[339839869,1728052365263,-528.72764547,0.00041095,120]
[339839870,1728052365273,-500.0,0.00041095,120]
[339839871,1728052365286,-461.77883932,0.00041095,120]
[339839872,1728052365299,-500.0,0.00041095,120]
[339839873,1728052365311,-638.93,0.00041095,120]
[339839874,1728052365320,-605.12,0.00041095,120]
[339839875,1728052365330,-500.0,0.00041095,120]
[339839876,1728052365339,-500.0,0.00041095,120]
[339839877,1728052365349,-500.0,0.00041095,120]
[339839878,1728052365359,-517.57,0.00041095,120]
[339839879,1728052365368,-536.77885327,0.00041095,120]
[339839880,1728052365378,-500.0,0.00041095,120]
[339839881,1728052365388,-1187.88,0.00041095,120]
[339839882,1728052365398,-1345.49,0.00041095,120]
[339839883,1728052365407,-646.89323418,0.00041095,120]
[339839884,1728052365418,-500.0,0.00041095,120]
[339839885,1728052365428,-500.0,0.00041095,120]
[339839886,1728052365438,-500.0,0.00041095,120]
[339839887,1728052365448,-500.0,0.00041095,120]
[339839888,1728052365457,-1287.48,0.00041095,120]
[339839889,1728052365467,-500.0,0.00041095,120]
[339839890,1728052365477,-500.0,0.00041095,120]
[339839891,1728052365487,-622.3,0.00041095,120]
[339839892,1728052365498,-599.91,0.00041095,120]
[339839893,1728052365508,-500.0,0.00041095,120]
[339839894,1728052365518,-916.31,0.00041095,120]
[339839895,1728052365528,-243.16573928,0.00041095,30]
[339839896,1728052365538,-1282.57,0.00041095,120]
[339839897,1728052365550,-594.74,0.00041095,120]
[339839898,1728052365560,-500.0,0.00041095,120]
[339839899,1728052365570,-500.0,0.00041095,120]
[339839900,1728052365579,-500.0,0.00041095,120]
[339839901,1728052365589,-500.0,0.00041095,120]
[339839902,1728052365599,-614.65,0.00041095,120]
[339839903,1728052365609,-500.0,0.00041095,120]
[339839904,1728052365619,-500.0,0.00041095,120]
[339839905,1728052365629,-500.0,0.00041095,120]
[339839906,1728052365638,-569.04,0.00041095,120]
[339839907,1728052365648,-627.677628,0.00041095,120]
[339839908,1728052365658,-500.0,0.00041095,120]
[339839909,1728052365668,-896.69,0.00041095,120]
[339839910,1728052365678,-500.0,0.00041095,120]
[339839911,1728052365688,-1266.27,0.00041095,7]
[339839912,1728052365698,-500.0,0.00041095,120]
[339839913,1728052365708,-500.0,0.00041095,120]
[339839914,1728052365718,-500.0,0.00041095,120]
[339839915,1728052365727,-547.54,0.00041095,120]
[339839916,1728052365737,-948.94,0.00041095,120]
[339839917,1728052365747,-500.0,0.00041095,120]
[339839918,1728052365757,-500.0,0.00041095,120]
[339839919,1728052365767,-500.0,0.00041095,120]
[339839920,1728052365776,-500.0,0.00041095,120]
[339839921,1728052365786,-500.0,0.00041095,120]
[339839922,1728052365800,-500.0,0.00041095,120]
[339839923,1728052365809,-500.0,0.00041095,120]
[339839924,1728052365819,-763.53,0.00041095,120]
[339839925,1728052365829,-1391.13,0.00041095,120]
[339839926,1728052365839,-500.0,0.00041095,120]
[339839927,1728052365849,-500.0,0.00041095,120]
[339839928,1728052365859,-500.0,0.00041095,120]
[339839929,1728052365869,-1983.22,0.00041095,120]
[339839930,1728052365879,-500.0,0.00041095,120]
[339839931,1728052365888,-500.0,0.00041095,120]
[339839932,1728052365898,-906.8,0.00041095,120]
[339839933,1728052365907,-604.79,0.00041095,120]
[339839934,1728052365917,-639.5,0.00041095,120]
[339839935,1728052365926,-500.0,0.00041095,120]
[339839936,1728052365936,-500.0,0.00041095,120]
[339839937,1728052365946,-500.0,0.00041095,120]
[339839938,1728052365955,-693.45,0.00041095,120]
[339839939,1728052365965,-542.48,0.00041095,120]
[339839940,1728052365975,-500.0,0.00041095,120]
[339839941,1728052365984,-500.0,0.00041095,120]
[339839942,1728052365994,-2885.95,0.00041095,120]
[339839943,1728052366004,-500.0,0.00041095,120]
[339839944,1728052366014,-2412.58,0.00041095,120]
[339839945,1728052366028,-581.68,0.00041095,120]
[339839946,1728052366038,-714.4,0.00041095,120]
[339839947,1728052366049,-500.0,0.00041095,120]
[339839948,1728052366059,-527.07,0.00041095,120]
[339839949,1728052366068,-500.0,0.00041095,120]
[339839950,1728052366078,-1396.61,0.00041095,120]
[339839951,1728052366088,-500.0,0.00041095,120]
[339839952,1728052366098,-1592.74,0.00041095,21]
[339839953,1728052366108,-500.0,0.00041095,120]
[339839954,1728052366118,-500.0,0.00041095,120]
[339839955,1728052366128,-500.0,0.00041095,120]
[339839956,1728052366138,-500.0,0.00041095,120]
[339839957,1728052366147,-500.0,0.00041095,120]
[339839958,1728052366157,-923.99,0.00041095,120]
[339839959,1728052366166,-627.63794361,0.00041095,120]
[339839960,1728052366176,-500.0,0.00041095,120]
[339839961,1728052366185,-1372.86,0.00041095,120]
[339839962,1728052366196,-500.0,0.00041095,120]
[339839963,1728052366206,-1453.68,0.00041095,120]
[339839964,1728052366216,-744.3,0.00041095,120]
[339839965,1728052366228,-1283.59,0.00041095,120]
[339839966,1728052366237,-500.0,0.00041095,120]
[339839967,1728052366247,-500.0,0.00041095,120]
[339839968,1728052366258,-893.06,0.00041095,120]
[339839969,1728052366270,-947.29,0.00041095,120]
[339839970,1728052366280,-500.0,0.00041095,120]
[339839971,1728052366292,-500.0,0.00041095,120]
[339839972,1728052366301,-1424.36,0.00041095,120]
[339839973,1728052366313,-202.23735678,0.00041095,120]
[339839974,1728052366322,-1090.27,0.00041095,120]
[339839975,1728052366332,-647.57,0.00041095,120]
[339839976,1728052366342,-827.5,0.00041095,120]
[339839977,1728052366352,-500.0,0.00041095,120]
[339839978,1728052366363,-1055.93,0.00041095,120]
[339839979,1728052366374,-500.0,0.00041095,120]
[339839980,1728052366386,-500.0,0.00041095,120]
[339839981,1728052366396,-2611.45,0.00041095,120]
[339839982,1728052366407,-500.0,0.00041095,120]
[339839983,1728052366417,-500.0,0.00041095,120]
[339839984,1728052366427,-2091.62,0.00041095,120]
[339839985,1728052366436,-500.0,0.00041095,120]
[339839986,1728052366445,-661.05,0.00041095,120]
[339839987,1728052366454,-578.92,0.00041095,120]
[339839988,1728052366464,-1075.43,0.00041095,120]
[339839989,1728052366473,-1153.94,0.00041095,120]
[339839990,1728052366483,-500.0,0.00041095,120]
[339839991,1728052366492,-1439.25,0.00041095,120]
[339839992,1728052366506,-500.0,0.00041095,120]
[339839993,1728052366516,-500.0,0.00041095,120]
[339839994,1728052366525,-3944.47,0.00041095,120]
[339839995,1728052366535,-779.04,0.00041095,120]
[339839996,1728052366547,-4476.87,0.00041095,120]
[339839997,1728052366559,-657.6,0.00041095,120]
[339839998,1728052366569,-774.23,0.00041095,120]
[339839999,1728052366578,-576.6,0.00041095,120]
[339840000,1728052366588,-509.63691496,0.00041095,120]
[339840001,1728052366597,-585.79097901,0.00041095,120]
[339840002,1728052366607,-670.06,0.00041095,120]
[339840003,1728052366617,-500.0,0.00041095,120]
[339840004,1728052366627,-500.0,0.00041095,120]
[339840005,1728052366637,-500.0,0.00041095,120]
[339840006,1728052366647,-4369.58,0.00041095,120]
[339840007,1728052366656,-1234.77,0.00041095,120]
[339840008,1728052366757,-500.0,0.00041095,120]
[339840009,1728052366766,-7513.51,0.00041095,120]
[339840010,1728052366776,-1456.1,0.00041095,120]
[339840011,1728052366786,-950.52,0.00041095,120]
[339840012,1728052366802,-1323.19,0.00041095,120]
[339840013,1728052366811,-1491.4,0.00041095,120]
[339840014,1728052366822,-511.9,0.00041095,120]
[339840015,1728052366832,-500.0,0.00041095,120]
[339840016,1728052366842,-500.0,0.00041095,120]
[339840017,1728052366852,-500.0,0.00041095,120]
[339840018,1728052366862,-939.24,0.00041095,120]
[339840019,1728052366871,-1484.53,0.00041095,120]
[339840020,1728052366881,-2473.72,0.00041095,120]
[339840021,1728052366891,-500.0,0.00041095,120]
[339840022,1728052366901,-576.71,0.00041095,120]
[339840023,1728052366910,-578.69,0.00041095,120]
[339840024,1728052366920,-782.01,0.00041095,120]
[339840025,1728052366929,-500.0,0.00041095,120]
[339840026,1728052366938,-500.0,0.00041095,120]
[339840027,1728052366949,-500.0,0.00041095,120]
[339840028,1728052366959,-3591.16,0.00041095,120]
[339840029,1728052366969,-500.0,0.00041095,120]
[339840030,1728052366978,-500.0,0.00041095,120]
[339840031,1728052366988,-500.0,0.00041095,120]
[339840032,1728052366998,-3218.69,0.00041095,120]
[339840033,1728052367008,-500.0,0.00041095,120]
[339840034,1728052367018,-970.53,0.00041095,120]
[339840035,1728052367028,-964.0,0.00041095,120]
[339840036,1728052367037,-500.0,0.00041095,120]
[339840037,1728052367052,-623.3,0.00041095,120]
[339840038,1728052367062,-1335.89,0.00041095,120]
[339840039,1728052367072,-500.0,0.00041095,120]
[339840040,1728052367082,-770.71,0.00041095,120]
[339840041,1728052367091,-1460.22,0.00041095,120]
[339840042,1728052367101,-1654.84,0.00041095,120]
[339840043,1728052367111,-4976.51,0.00041095,120]
[339840044,1728052367120,-500.0,0.00041095,120]
[339840045,1728052367130,-733.59,0.00041095,120]
[339840046,1728052367140,-932.62,0.00041095,120]
[339840047,1728052367151,-616.38316003,0.00041095,120]
[339840048,1728052367160,-250.78,0.00041095,120]
[339840049,1728052367170,-284.73540803,0.00041095,120]
[339840050,1728052367180,-427.76032514,0.00041095,120]
[339840051,1728052367189,-1867.11,0.00041095,120]
[339840052,1728052367199,-11036.81,0.00041095,120]
[339840053,1728052367209,-2395.29,0.00041095,120]
[339840054,1728052367219,-500.0,0.00041095,120]
[339840055,1728052367229,-538.86,0.00041095,120]
[339840056,1728052367239,-1321.64,0.00041095,120]
[339840057,1728052367249,-500.0,0.00041095,120]
[339840058,1728052367259,-500.0,0.00041095,120]
[339840059,1728052367268,-1311.12,0.00041095,120]
[339840060,1728052367278,-500.0,0.00041095,120]
[339840061,1728052367288,-686.82,0.00041095,120]
[339840062,1728052367300,-1288.59,0.00041095,120]
[339840063,1728052367312,-599.98,0.00041095,30]
[339840064,1728052367321,-599.98,0.00041095,30]
[339840065,1728052367331,-599.98,0.00041095,30]
[339840066,1728052367341,-500.0,0.00041095,120]
[339840067,1728052367351,-599.98,0.00041095,30]
[339840068,1728052367361,-599.98,0.00041095,30]
[339840069,1728052367370,-599.98,0.00041095,30]
[339840070,1728052367379,-1800.34,0.00041095,120]
[339840071,1728052367389,-599.98,0.00041095,30]
[339840072,1728052367398,-599.98,0.00041095,30]
[339840073,1728052367407,-599.98,0.00041095,30]
[339840074,1728052367418,-599.98,0.00041095,30]
[339840075,1728052367428,-599.98,0.00041095,30]
[339840076,1728052367437,-500.0,0.00041095,120]
[339840077,1728052367446,-845.07,0.00041095,120]
[339840078,1728052367457,-500.0,0.00041095,120]
[339840079,1728052367468,-1469.35,0.00041095,120]
[339840080,1728052367478,-1052.81,0.00041095,120]
[339840081,1728052367488,-1253.47,0.00041095,120]
[339840082,1728052367498,-6995.81,0.00041095,120]
[339840083,1728052367510,-500.0,0.00041095,120]
[339840084,1728052367521,-507.47,0.00041095,120]
[339840085,1728052367532,-500.0,0.00041095,120]
[339840086,1728052367542,-500.0,0.00041095,120]
[339840087,1728052367553,-2611.3,0.00041095,120]
[339840088,1728052367563,-500.0,0.00041095,120]
[339840089,1728052367574,-604.27,0.00041095,120]
[339840090,1728052367586,-2230.01,0.00041095,120]
[339840091,1728052367595,-500.0,0.00041095,120]
[339840092,1728052367605,-500.0,0.00041095,120]
[339840093,1728052367615,-646.77,0.00041095,120]
[339840094,1728052367627,-500.0,0.00041095,120]
[339840095,1728052367638,-500.0,0.00041095,120]
[339840096,1728052367649,-500.0,0.00041095,120]
[339840097,1728052367660,-500.0,0.00041095,120]
[339840098,1728052367669,-500.0,0.00041095,120]
[339840099,1728052367679,-514.91,0.00041095,120]
[339840100,1728052367688,-500.0,0.00041095,120]
[339840101,1728052367698,-1404.49,0.00041095,120]
[339840102,1728052367707,-500.0,0.00041095,120]
[339840103,1728052367717,-500.0,0.00041095,120]
[339840104,1728052367727,-500.0,0.00041095,120]
[339840105,1728052367737,-500.0,0.00041095,120]
[339840106,1728052367746,-606.88,0.00041095,120]
[339840107,1728052367756,-1190.32,0.00041095,120]
[339840108,1728052367766,-1530.35,0.00041095,120]
[339840109,1728052367778,-529.49407749,0.00041095,120]
[339840110,1728052367788,-500.0,0.00041095,120]
[339840111,1728052367800,-1303.53,0.00041095,120]
[339840112,1728052367810,-500.0,0.00041095,120]
[339840113,1728052367820,-2906.15,0.00041095,120]
[339840114,1728052367829,-2906.15,0.00041095,120]
[339840115,1728052367839,-2906.15,0.00041095,120]
[339840116,1728052367849,-2906.15,0.00041095,120]
[339840117,1728052367860,-765.62,0.00041095,120]
[339840118,1728052367869,-2906.15,0.00041095,120]
[339840119,1728052367879,-2906.15,0.00041095,120]
[339840120,1728052367888,-2906.15,0.00041095,120]
[339840121,1728052367899,-625.05,0.00041095,120]
[339840122,1728052367908,-2906.15,0.00041095,120]
[339840123,1728052367918,-2906.15,0.00041095,120]
[339840124,1728052367927,-2906.15,0.00041095,120]
[339840125,1728052367937,-2906.15,0.00041095,120]
[339840126,1728052367947,-500.0,0.00041095,7]
[339840127,1728052367956,-1163.76,0.00041095,120]
[339840128,1728052367965,-2290.51,0.00041095,120]
[339840129,1728052367976,-500.0,0.00041095,120]
[339840130,1728052367985,-649.86,0.00041095,120]
[339840131,1728052367995,-500.0,0.00041095,120]
[339840132,1728052368005,-716.37,0.00041095,120]
[339840133,1728052368015,-500.0,0.00041095,120]
[339840134,1728052368027,-3503.34,0.00041095,120]
[339840135,1728052368037,-500.0,0.00041095,120]
[339840136,1728052368047,-5035.5,0.00041095,120]
[339840137,1728052368058,-1925.44,0.00041095,120]
[339840138,1728052368068,-7070.31,0.00041095,120]
[339840139,1728052368078,-500.0,0.00041095,120]
[339840140,1728052368088,-1047.78,0.00041095,120]
[339840141,1728052368097,-500.0,0.00041095,120]
[339840142,1728052368107,-658.7,0.00041095,120]
[339840143,1728052368117,-500.0,0.00041095,120]
[339840144,1728052368127,-4318.76,0.00041095,120]
[339840145,1728052368137,-1963.01,0.00041095,120]
[339840146,1728052368146,-1732.87,0.00041095,120]
[339840147,1728052368156,-566.34832171,0.00041095,120]
[339840148,1728052368166,-500.0,0.00041095,120]
[339840149,1728052368175,-500.0,0.00041095,120]
[339840150,1728052368185,-500.0,0.00041095,120]
[339840151,1728052368195,-500.0,0.00041095,120]
[339840152,1728052368204,-820.76,0.00041095,120]
[339840153,1728052368214,-500.0,0.00041095,120]
[339840154,1728052368224,-2184.74,0.00041095,120]
[339840155,1728052368234,-3611.87,0.00041095,120]
[339840156,1728052368243,-1967.11,0.00041095,120]
[339840157,1728052368253,-825.07,0.00041095,120]
[339840158,1728052368263,-1805.1,0.00041095,120]
[339840159,1728052368273,-3035.24,0.00041095,120]
[339840160,1728052368283,-511.74,0.00041095,120]
[339840161,1728052368293,-500.0,0.00041095,120]
[339840162,1728052368304,-500.0,0.00041095,120]
[339840163,1728052368317,-560.83,0.00041095,120]
[339840164,1728052368327,-1582.94,0.00041095,120]
[339840165,1728052368336,-1065.36,0.00041095,120]
[339840166,1728052368346,-5880.09,0.00041095,120]
[339840167,1728052368358,-1564.74,0.00041095,120]
[339840168,1728052368367,-500.0,0.00041095,120]
[339840169,1728052368377,-4434.66,0.00041095,120]
[339840170,1728052368388,-840.82,0.00041095,120]
[339840171,1728052368398,-778.93,0.00041095,120]
[339840172,1728052368408,-1115.42,0.00041095,120]
[339840173,1728052368417,-641.17,0.00041095,120]
[339840174,1728052368427,-1034.46,0.00041095,120]
[339840175,1728052368437,-1167.3,0.00041095,120]
[339840176,1728052368447,-640.61,0.00041095,120]
[339840177,1728052368456,-541.94,0.00041095,120]
[339840178,1728052368466,-500.0,0.00041095,120]
[339840179,1728052368476,-500.0,0.00041095,120]
[339840180,1728052368485,-973.61,0.00041095,120]
[339840181,1728052368495,-1034.57,0.00041095,120]
[339840182,1728052368505,-266.54864561,0.00041095,120]
[339840183,1728052368514,-500.0,0.00041095,120]
[339840184,1728052368524,-9952.7,0.00041095,120]
[339840185,1728052368534,-2401.59,0.00041095,120]
[339840186,1728052368546,-500.0,0.00041095,120]
[339840187,1728052368555,-500.0,0.00041095,120]
[339840188,1728052368566,-503.06,0.00041095,120]
[339840189,1728052368576,-665.23,0.00041095,120]
[339840190,1728052368586,-1417.36,0.00041095,120]
[339840191,1728052368596,-500.0,0.00041095,120]
[339840192,1728052368606,-1278.94,0.00041095,120]
[339840193,1728052368616,-666.8,0.00041095,120]
[339840194,1728052368626,-500.0,0.00041095,120]
[339840195,1728052368636,-1288.99,0.00041095,120]
[339840196,1728052368646,-694.07,0.00041095,120]
[339840197,1728052368656,-5537.59,0.00041095,120]
[339840198,1728052368665,-1883.94,0.00041095,120]
[339840199,1728052368675,-935.01,0.00041095,120]
[339840200,1728052368685,-1656.57,0.00041095,120]
[339840201,1728052368694,-755.83,0.00041095,120]
[339840202,1728052368704,-500.0,0.00041095,120]
[339840203,1728052368714,-157.0,0.00041096,2]
[339840204,1728052368724,-152.08,0.00041123,30]
[339840205,1728052368733,-233.100417,0.00041148,117]
[339840206,1728052368743,-150.0,0.00041158,120]
[339840207,1728052368752,-150.0,0.00041186,120]
[339840208,1728052368762,-150.0,0.00041232,120]
[339840209,1728052368771,-233.100417,0.00041248,118]
[339840210,1728052368781,-109466.729,0.0004125,120]
[339840211,1728052368791,-109466.729,0.0004125,120]
[339840212,1728052368807,-109466.729,0.0004125,120]
[339840213,1728052368818,-109466.729,0.0004125,120]
[339840214,1728052368829,-109466.73,0.0004125,120]
[339840215,1728052368840,-5532.8,0.00041347,117]
[339840216,1728052368849,-233.100417,0.00041348,119]
[339840217,1728052368858,-155.48182,0.00041369,120]
[339840218,1728052368868,-150.159144,0.00041369,120]
[339840219,1728052368878,-500.0,0.00041369,120]
[339840220,1728052368888,-500.0,0.00041369,120]
[339840221,1728052368897,-500.0,0.00041369,120]
[339840222,1728052368907,-500.0,0.00041369,120]
[339840223,1728052368917,-500.0,0.00041369,120]
[339840224,1728052368927,-169.88067188,0.00041369,120]
[339840225,1728052368936,-501.94744087,0.00041369,120]
[339840226,1728052368946,-1279.35,0.00041369,120]
[339840227,1728052368955,-686.46,0.00041369,120]
[339840228,1728052368965,-591.70708758,0.00041369,120]
[339840229,1728052368975,-500.0,0.00041369,120]
[339840230,1728052368985,-523.99,0.00041369,120]
[339840231,1728052368995,-500.0,0.00041369,120]
[339840232,1728052369005,-694.3,0.00041369,120]
[339840233,1728052369015,-511.92,0.00041369,120]
[339840234,1728052369026,-500.0,0.00041369,120]
[339840235,1728052369037,-500.0,0.00041369,120]
[339840236,1728052369049,-500.0,0.00041369,120]
[339840237,1728052369058,-500.0,0.00041369,120]
[339840238,1728052369068,-500.0,0.00041369,120]
[339840239,1728052369077,-500.0,0.00041369,120]
[339840240,1728052369086,-571.19,0.00041369,7]